bitfinex-derivatives/quotes_SOLF0:USTF0_20241005
["timestamp","ask_amount","ask_price","bid_price","bid_amount"]
[1728099971280,3.5204,142.02,142.01,0.12502]
[1728099971481,11.0802,142.03,142.01,0.12502]
[1728099975692,3.5198,142.05,142.01,0.12502]
[1728099975997,16.0598,142.05,142.01,7.68502]
[1728099976495,3.52175112,142.06,142.01,7.68502]
[1728099976496,8.4993,142.07,142.03,7.56]
[1728099977498,3.5193,142.07,142.03,11.0802]
[1728099977993,11.0797,142.05,142.02,1.4231]
[1728099978197,11.0797,142.05,142.01,7.68502]
[1728099978999,11.0797,142.05,142.01,11.20562]
[1728099979690,3.52,142.04,142.01,7.68502]
[1728099980196,7.56,142.04,142.01,0.12502]
[1728099980994,3.5202,142.03,142.01,0.12502]
[1728099984096,11.08,142.04,142.01,0.12502]
[1728099987206,3.5202,142.03,142.01,0.12502]
[1728099987803,11.0802,142.03,142.01,0.12502]
[1728099996021,7.56,142.03,142.01,0.12502]
[1728099996323,11.0804,142.02,142.01,0.12502]
[1728099997723,7.56,142.02,142.01,0.12502]
[1728099998113,3.5203,142.03,142.01,0.12502]
[1728099999017,3.5201,142.04,142.01,0.12502]
[1728099999322,11.0801,142.04,142.01,0.12502]
[1728100000031,3.5202,142.03,142.01,0.12502]
[1728100006448,11.0804,142.02,142.01,0.12502]
[1728100008740,16.0604,142.02,142.01,0.12502]
[1728100009536,3.5213,141.99,141.95,16.18702]
[1728100009736,11.0813,141.99,141.95,16.18702]
[1728100011437,7.56,141.99,141.95,16.18702]
[1728100011642,3.5215,141.98,141.95,16.18702]
[1728100016851,3.5218,141.97,141.95,0.12502]
[1728100017944,11.0819,141.96,141.95,0.12502]
[1728100028549,4.98,141.99,141.95,0.12502]
[1728100028752,7.56,141.97,141.95,0.12502]
[1728100030560,11.0818,141.97,141.95,0.12502]
[1728100032453,3.5219,141.96,141.95,0.12502]
[1728100035464,4.98,141.98,141.95,0.12502]
[1728100035465,3.5215,141.98,141.95,0.12502]
[1728100039270,11.0815,141.98,141.95,0.12502]
[1728100041265,7.56,141.97,141.95,0.12502]
[1728100041853,3.5219,141.96,141.95,0.12502]
[1728100051580,11.0819,141.96,141.95,0.12502]
[1728100058673,3.5227,141.93,141.9,1.4148]
[1728100058985,7.56,141.91,141.89,0.12502]
[1728100060985,11.0833,141.91,141.89,0.12502]
[1728100061483,7.56,141.9,141.89,0.12502]
[1728100061778,11.0834,141.9,141.89,0.12502]
[1728100082505,4.98,141.93,141.89,0.12502]
[1728100082711,3.5229,141.92,141.89,0.12502]
[1728100082904,11.0829,141.92,141.89,0.12502]
[1728100083207,4.98,141.93,141.89,3.64862]
[1728100083405,11.0827,141.93,141.89,0.12502]
[1728100083913,11.0827,141.93,141.89,3.64842]
[1728100085108,3.5223,141.95,141.91,3.5231]
[1728100085315,7.56,141.94,141.91,3.5231]
[1728100086715,7.56,141.93,141.91,3.5231]
[1728100091920,11.0824,141.94,141.91,3.5231]
[1728100098828,3.5224,141.94,141.91,3.5231]
[1728100099028,7.56,141.93,141.91,3.5231]
[1728100123064,7.56,141.93,141.9,3.5233]
[1728100123666,11.0827,141.93,141.9,3.5233]
[1728100128962,11.0827,141.93,141.9,8.5033]
[1728100130264,7.56,141.93,141.9,4.98]
[1728100130570,3.5231,141.91,141.9,4.98]
[1728100132375,3.5231,141.91,141.89,0.12502]
[1728100132875,3.523,141.92,141.89,3.64862]
[1728100134973,3.5231,141.91,141.89,3.64862]
[1728100140478,3.5222,141.95,141.92,3.5227]
[1728100140678,82.56988383,141.97,141.92,7.56]
[1728100140881,90.12988383,141.97,141.92,7.56]
[1728100141189,7.56,141.96,141.92,7.56]
[1728100141884,3.5221,141.95,141.92,11.0827]
[1728100143687,7.56,141.96,141.92,11.0827]
[1728100143887,11.082,141.96,141.92,11.0827]
[1728100146006,7.56,141.96,141.91,12.54]
[1728100146308,3.5223,141.95,141.91,16.063]
[1728100146987,11.0823,141.95,141.91,16.063]
[1728100147693,7.56,141.95,141.89,0.12502]
[1728100147996,82.56988383,141.97,141.89,0.12502]
[1728100147997,3.523,141.92,141.9,4.98]
[1728100148694,3.523,141.92,141.89,8.62852]
[1728100152092,7.56,141.91,141.89,0.12502]
[1728100152291,7.56,141.9,141.89,0.12502]
[1728100152996,11.0834,141.9,141.89,0.12502]
[1728100163705,3.5231,141.92,141.89,0.12502]
[1728100163893,7.56,141.91,141.89,0.12502]
[1728100165006,3.5234,141.9,141.89,0.12502]
[1728100165799,2.7457,141.94,141.89,0.12502]
[1728100165800,7.56,141.92,141.89,0.12502]
[1728100166505,11.0831,141.92,141.89,0.12502]
[1728100167102,7.56,141.92,141.89,0.12502]
[1728100167304,3.5232,141.91,141.89,0.12502]
[1728100186813,7.56,141.9,141.89,0.12502]
[1728100187109,11.0834,141.9,141.89,0.12502]
[1728100190314,14.59886537,141.9,141.89,0.12502]
[1728100190608,3.5242,141.87,141.84,4.96]
[1728100190814,11.0842,141.87,141.84,4.96]
[1728100191411,11.0842,141.87,141.83,5.08502]
[1728100191811,11.0842,141.87,141.84,3.5249]
[1728100192814,3.5242,141.87,141.84,3.5249]
[1728100193911,7.56,141.88,141.83,12.64502]
[1728100194110,11.084,141.88,141.85,11.0846]
[1728100195217,349.2991,142.1,141.87,3.5241]
[1728100195515,349.2991,142.1,141.87,11.0841]
[1728100195516,7.56,141.91,141.87,11.0841]
[1728100196102,11.0833,141.91,141.87,11.0841]
[1728100199013,4.96,141.93,141.87,7.56]
[1728100199220,7.56,141.92,141.87,7.56]
[1728100200011,3.5232,141.91,141.88,3.5238]
[1728100200619,7.56,141.91,141.86,4.96]
[1728100200924,7.56,141.89,141.86,4.96]
[1728100201224,3.524,141.88,141.84,3.5248]
[1728100201422,7.56,141.88,141.83,0.12502]
[1728100201627,7.56,141.88,141.84,4.96]
[1728100201828,7.56,141.88,141.84,8.4848]
[1728100202418,11.084,141.88,141.84,8.4848]
[1728100202723,11.084,141.88,141.84,16.0448]
[1728100202924,11.084,141.88,141.85,3.5246]
[1728100203321,7.56,141.88,141.85,3.5246]
[1728100203524,11.0838,141.89,141.85,3.5246]
[1728100204026,7.56,141.89,141.85,7.56]
[1728100204327,3.5234,141.9,141.87,3.5241]
[1728100204716,3.5234,141.9,141.86,11.0842]
[1728100205116,3.5234,141.9,141.86,7.56]
[1728100206128,3.5234,141.9,141.87,3.5241]
[1728100206930,7.56,141.88,141.83,0.12502]
[1728100207129,3.5245,141.86,141.83,0.12502]
[1728100209625,3.5247,141.85,141.83,0.12502]
[1728100215728,7.56,141.87,141.83,0.12502]
[1728100216628,3.5244,141.86,141.83,3.65002]
[1728100223144,3.5246,141.85,141.83,3.65002]
[1728100223637,3.5246,141.85,141.83,5.08502]
[1728100224136,3.5245,141.86,141.83,8.61012]
[1728100224440,7.56,141.87,141.83,5.08502]
[1728100225341,3.5246,141.86,141.83,5.08502]
[1728100233253,3.5246,141.86,141.83,8.61002]
[1728100249565,11.0842,141.87,141.84,3.5248]
[1728100255772,7.56,141.88,141.83,5.08502]
[1728100255969,11.0839,141.88,141.83,5.08502]
[1728100256872,11.0839,141.88,141.84,3.5247]
[1728100262476,11.0839,141.88,141.85,3.5246]
[1728100269291,4.96,141.91,141.85,3.5246]
[1728100269487,7.56,141.91,141.86,12.52]
[1728100269687,7.56,141.91,141.87,7.56]
[1728100270087,7.56,141.91,141.87,9.0131]
[1728100270389,0.12502,141.95,141.9,7.56]
[1728100270690,0.12502,141.95,141.94,11.0824]
[1728100270992,0.12502,141.95,141.94,16.0424]
[1728100276889,0.12502,142.01,141.96,3.5219]
[1728100277090,0.12502,142.01,141.97,12.52]
[1728100277287,0.12502,142.01,142.0,7.56]
[1728100277481,0.12502,142.01,142.0,12.52]
[1728100278401,0.12502,142.01,142.0,16.0409]
[1728100283101,3.64422,142.07,142.03,3.5199]
[1728100283399,3.64422,142.07,142.04,4.96]
[1728100284798,0.12502,142.07,142.05,3.5196]
[1728100285794,0.12502,142.07,142.06,3.5194]
[1728100286000,0.12502,142.07,142.06,11.0794]
[1728100288603,7.68502,142.07,142.04,4.96]
[1728100288815,7.56,142.05,142.04,4.96]
[1728100289003,11.0797,142.05,142.04,4.96]
[1728100289207,0.12502,142.07,142.04,4.96]
[1728100289208,7.56,142.06,142.04,4.96]
[1728100290311,11.0796,142.06,142.04,4.96]
[1728100292902,11.20432,142.07,142.04,4.96]
[1728100295111,0.12502,142.07,142.06,3.5194]
[1728100295503,0.12502,142.07,142.06,11.0794]
[1728100298410,0.12502,142.07,142.06,4.96]
[1728100298615,0.12502,142.07,142.05,4.96]
[1728100299111,3.64422,142.07,142.05,4.96]
[1728100306514,3.5197,142.05,142.02,3.5204]
[1728100306705,3.5197,142.05,142.04,4.96]
[1728100307605,3.5195,142.06,142.04,4.96]
[1728100310512,3.5195,142.06,142.03,4.96]
[1728100312619,3.64432,142.07,142.03,16.04]
[1728100318524,3.5194,142.06,142.03,16.04]
[1728100320524,7.56,142.06,141.98,1.4218]
[1728100320722,7.56,142.05,142.0,7.56]
[1728100321124,3.5203,142.03,142.0,8.4807]
[1728100323527,7.56,142.05,142.0,7.56]
[1728100323729,7.56,142.03,141.99,7.56]
[1728100323926,7.56,142.03,141.99,4.96]
[1728100324127,3.5208,142.01,141.99,4.96]
[1728100324325,1.3534,142.06,141.99,12.52]
[1728100324526,7.56,142.04,141.99,12.52]
[1728100324728,3.5205,142.02,141.99,12.52]
[1728100325325,3.5205,142.02,141.99,7.56]
[1728100327529,3.5205,142.02,141.99,11.0811]
[1728100327727,3.5202,142.03,141.99,11.0811]
[1728100328626,7.56,142.05,142.0,7.56]
[1728100329024,12.39316462,142.06,142.01,7.56]
[1728100329430,3.5199,142.05,142.01,11.0805]
[1728100329734,12.39316462,142.06,142.01,11.0805]
[1728100329922,3.5199,142.04,142.01,11.0805]
[1728100330932,3.5197,142.05,142.02,3.5203]
[1728100331129,7.56,142.06,142.02,3.5203]
[1728100331429,0.12502,142.07,142.02,7.56]
[1728100333126,3.64422,142.07,142.03,3.5201]
[1728100333328,3.64422,142.07,142.04,4.96]
[1728100335132,0.12502,142.13,142.06,7.56]
[1728100335327,0.12502,142.13,142.1,7.56]
[1728100335536,0.12502,142.13,142.1,11.0783]
[1728100337840,0.12502,142.13,142.11,3.5181]
[1728100338541,0.12502,142.13,142.11,3.518]
[1728100338932,0.12502,142.13,142.12,4.96]
[1728100339239,0.12502,142.13,142.12,16.0379]
[1728100340735,0.12502,142.19,142.15,3.5169]
[1728100340936,0.12502,142.19,142.15,16.0369]
[1728100341235,0.12502,142.19,142.17,7.56]
[1728100341450,0.12502,142.19,142.18,4.96]
[1728100343862,3.5165,142.18,142.17,4.96]
[1728100344056,3.5165,142.18,142.16,4.96]
[1728100344759,11.20132,142.19,142.16,4.96]
[1728100346358,3.64132,142.19,142.16,12.52]
[1728100346549,0.12502,142.19,142.16,16.0369]
[1728100350865,0.12502,142.19,142.17,7.56]
[1728100361770,0.12502,142.19,142.18,11.0764]
[1728100361977,0.12502,142.19,142.18,7.56]
[1728100367980,0.12502,142.19,142.16,12.52]
[1728100369082,3.5165,142.18,142.16,12.52]
[1728100370781,3.5165,142.18,142.16,4.96]
[1728100370973,3.5165,142.18,142.17,7.56]
[1728100372683,3.64122,142.19,142.17,7.56]
[1728100377879,3.64122,142.19,142.17,11.0767]
[1728100378189,0.12502,142.19,142.17,11.0767]
[1728100387991,0.12502,142.19,142.18,3.5164]
[1728100388487,0.12502,142.19,142.18,11.0764]
[1728100389888,0.12502,142.19,142.18,3.5164]
[1728100396387,0.12502,142.19,142.18,8.4564]
[1728100396790,0.12502,142.19,142.18,4.94]
[1728100410611,0.12502,142.19,142.17,8.4566]
[1728100425624,7.68502,142.19,142.1,4.94]
[1728100425821,7.56,142.17,142.1,12.5]
[1728100426010,3.5179,142.12,142.1,12.5]
[1728100427219,3.5179,142.12,142.1,4.94]
[1728100429827,3.50288364,142.16,142.1,12.5]
[1728100430033,3.5175,142.14,142.11,7.56]
[1728100436333,7.56,142.16,142.11,7.56]
[1728100436634,3.5177,142.13,142.11,7.56]
[1728100443529,3.5177,142.13,142.1,12.5]
[1728100449842,3.5182,142.11,142.1,4.94]
[1728100450163,7.56,142.13,142.1,4.94]
[1728100450533,3.518,142.12,142.1,4.94]
[1728100453747,7.56,142.14,142.1,4.94]
[1728100454050,7.56,142.15,142.1,8.4584]
[1728100455147,3.5177,142.13,142.1,8.4584]
[1728100457447,3.5177,142.13,142.1,4.94]
[1728100457642,7.56,142.13,142.1,4.94]
[1728100457849,3.5182,142.11,142.1,4.94]
[1728100462054,7.56,142.13,142.09,4.94]
[1728100462256,7.56,142.12,142.08,4.94]
[1728100463153,7.56,142.12,142.07,5.06502]
[1728100464057,7.56,142.08,142.07,0.12502]
[1728100464657,11.0789,142.08,142.07,0.12502]
[1728100466149,11.0789,142.08,142.02,3.5203]
[1728100466150,7.56,142.08,142.02,3.5203]
[1728100466355,11.0796,142.06,142.02,8.4603]
[1728100466951,3.5197,142.05,142.02,4.94]
[1728100467963,3.5197,142.05,142.01,16.14552]
[1728100468862,3.5197,142.05,142.01,12.62502]
[1728100469353,3.5197,142.05,142.01,5.06502]
[1728100470148,3.5197,142.05,142.01,8.58552]
[1728100470361,3.5197,142.05,142.01,16.14552]
[1728100476354,11.0804,142.02,142.01,0.12502]
[1728100476667,15.98947701,142.02,141.95,0.12502]
[1728100476864,7.56,141.98,141.95,0.12502]
[1728100477958,11.0815,141.98,141.95,0.12502]
[1728100478956,11.0815,141.98,141.95,3.64712]
[1728100483977,1.3171,142.03,141.95,0.12502]
[1728100484275,11.0809,142.0,141.97,3.5216]
[1728100484467,4.94,142.02,141.97,7.56]
[1728100484662,12.5,142.02,141.97,7.56]
[1728100485169,3.5207,142.01,141.98,3.5213]
[1728100485368,3.5207,142.01,141.96,13.8248]
[1728100487064,3.5207,142.01,141.98,3.5214]
[1728100488775,11.0807,142.01,141.98,3.5214]
[1728100490777,3.521,142.0,141.97,3.5216]
[1728100490976,7.56,142.01,141.96,13.8248]
[1728100492081,11.0807,142.01,141.98,3.5214]
[1728100510005,1.3171,142.03,141.97,7.56]
[1728100510304,90.0883838,142.05,142.01,7.56]
[1728100510691,90.0883838,142.05,142.02,3.5203]
[1728100511800,93.6080838,142.05,142.02,3.5203]
[1728100519098,93.6080838,142.05,142.01,3.5205]
[1728100519099,7.56,142.04,142.01,3.5205]
[1728100519910,11.0799,142.04,142.01,3.5205]
[1728100520100,11.0799,142.04,141.99,12.5]
[1728100520302,11.0799,142.04,142.0,3.5207]
[1728100520809,11.0799,142.04,142.01,3.5206]
[1728100521311,11.0799,142.04,141.99,4.94]
[1728100521607,11.0799,142.04,142.0,3.5208]
[1728100521809,7.56,142.03,141.99,4.94]
[1728100523111,7.56,142.01,141.99,4.94]
[1728100526509,7.56,142.01,141.95,1.50112]
[1728100526510,3.5217,141.97,141.95,0.12502]
[1728100526708,7.56,141.96,141.95,0.12502]
[1728100527214,11.0819,141.96,141.95,0.12502]
[1728100529717,1.3449,141.99,141.95,0.12502]
[1728100530021,8.9156,142.0,141.96,3.5218]
[1728100531016,12.4366,142.0,141.96,3.5218]
[1728100531612,8.9156,142.0,141.97,3.5216]
[1728100541332,7.56,142.0,141.97,3.5216]
[1728100546439,4.94,142.02,141.96,7.56]
[1728100546735,3.5205,142.02,141.96,7.56]
[1728100547032,13.8842,142.04,142.0,3.5207]
[1728100548136,12.4805,142.04,142.0,3.5207]
[1728100553335,7.56,142.02,141.98,4.94]
[1728100553738,11.0806,142.02,141.98,8.4613]
[1728100555038,7.56,141.99,141.95,0.12502]
[1728100555340,1.4004,142.04,141.95,0.12502]
[1728100555341,7.56,141.97,141.95,0.12502]
[1728100557042,11.0818,141.97,141.95,0.12502]
[1728100557239,3.5218,141.97,141.95,0.12502]
[1728100564354,4.94,142.0,141.95,0.12502]
[1728100564548,11.0812,141.99,141.95,0.12502]
[1728100564845,7.56,141.99,141.95,0.12502]
[1728100566052,3.5214,141.98,141.95,3.64712]
[1728100567053,3.5214,141.98,141.95,0.12502]
[1728100569964,3.5214,141.98,141.95,3.64712]
[1728100578868,7.56,141.97,141.95,0.12502]
[1728100579067,11.0819,141.96,141.95,0.12502]
[1728100596978,3.5217,141.97,141.95,0.12502]
[1728100597279,11.0817,141.97,141.95,0.12502]
[1728100601984,7.56,141.97,141.95,0.12502]
[1728100602283,3.5219,141.96,141.95,0.12502]
[1728100623311,1.3778,141.99,141.95,0.12502]
[1728100623513,7.56,141.99,141.95,0.12502]
[1728100624404,7.56,141.99,141.96,3.5218]
[1728100629017,11.0812,141.99,141.96,3.5218]
[1728100631814,7.56,141.98,141.95,0.12502]
[1728100632116,7.56,141.96,141.95,0.12502]
[1728100640215,11.0819,141.96,141.95,0.12502]
[1728100642819,7.56,141.96,141.95,0.12502]
[1728100646616,3.5215,141.98,141.95,3.64692]
[1728100646820,11.0815,141.98,141.95,3.64692]
[1728100648328,7.56,141.98,141.96,3.5219]
[1728100648634,16.0213,141.99,141.96,3.5219]
[1728100649433,7.56,141.98,141.96,3.5219]
[1728100666235,7.56,141.97,141.95,0.12502]
[1728100666433,7.56,141.96,141.89,0.12502]
[1728100666638,7.56,141.92,141.9,6.3924]
[1728100666841,7.56,141.91,141.89,0.12502]
[1728100680067,11.0832,141.91,141.89,0.12502]
[1728100683958,12.5,141.9,141.79,18.253277]
[1728100684157,7.56,141.88,141.82,4.94]
[1728100684363,3.5245,141.86,141.82,8.4652]
[1728100684562,11.0845,141.86,141.82,8.4652]
[1728100684753,11.0845,141.86,141.82,3.5252]
[1728100686158,11.0847,141.85,141.82,3.5252]
[1728100686757,7.56,141.85,141.8,1.378]
[1728100686955,3.5249,141.84,141.8,4.9037]
[1728100688165,11.0844,141.86,141.82,3.5253]
[1728100689069,7.56,141.86,141.82,3.5253]
[1728100689258,3.5246,141.85,141.82,3.5253]
[1728100689753,7.56,141.84,141.79,12.5]
[1728100689965,7.56,141.84,141.81,3.5256]
[1728100691154,11.0849,141.84,141.81,3.5256]
[1728100691969,1.3649,141.85,141.77,0.12502]
[1728100691970,3.5255,141.82,141.77,0.12502]
[1728100692155,7.56,141.81,141.77,12.62502]
[1728100692353,7.56,141.81,141.78,3.5262]
[1728100694268,11.0856,141.81,141.78,3.5262]
[1728100701270,11.0856,141.81,141.77,3.65152]
[1728100701672,7.56,141.81,141.77,3.65152]
[1728100701873,3.5259,141.8,141.77,3.65152]
[1728100702178,7.56,141.81,141.77,3.65152]
[1728100702379,7.56,141.81,141.77,0.12502]
[1728100703171,11.0857,141.81,141.77,3.65142]
[1728100703459,11.0857,141.81,141.77,0.12502]
[1728100705071,11.0857,141.81,141.78,3.5264]
[1728100706968,7.56,141.81,141.78,3.5264]
[1728100708780,7.56,141.81,141.77,7.68502]
[1728100708978,7.56,141.81,141.78,3.5263]
[1728100709178,7.56,141.81,141.77,7.68502]
[1728100709771,7.56,141.81,141.78,3.5263]
[1728100711672,3.5261,141.8,141.77,3.65152]
[1728100714875,11.0857,141.81,141.78,3.5263]
[1728100715473,11.0857,141.81,141.77,3.65162]
[1728100716983,3.5259,141.8,141.77,3.65162]
[1728100717378,11.0859,141.8,141.77,3.65162]
[1728100719283,7.56,141.8,141.77,0.12502]
[1728100719474,3.5263,141.79,141.77,0.12502]
[1728100720300,7.56,141.8,141.77,0.12502]
[1728100720583,3.5263,141.79,141.77,0.12502]
[1728100724086,11.086,141.8,141.77,3.65162]
[1728100728576,1.329,141.83,141.78,7.56]
[1728100728885,11.0852,141.83,141.8,3.5257]
[1728100730593,7.56,141.82,141.8,3.5257]
[1728100731792,7.56,141.82,141.79,3.526]
[1728100734594,7.56,141.81,141.77,5.06502]
[1728100734796,7.56,141.81,141.78,3.5262]
[1728100736397,11.0857,141.81,141.78,3.5262]
[1728100736695,7.56,141.79,141.77,3.65162]
[1728100737096,7.56,141.79,141.77,0.12502]
[1728100737888,7.56,141.78,141.77,0.12502]
[1728100739594,7.56,141.78,141.71,0.12502]
[1728100739802,7.56,141.74,141.72,3.5278]
[1728100740096,7.56,141.74,141.71,0.12502]
[1728100740790,4.94,141.76,141.71,0.12502]
[1728100740995,11.0872,141.75,141.72,3.5277]
[1728100742606,1.333,141.81,141.73,7.56]
[1728100742790,974.24287759,142.89,141.74,7.56]
[1728100742791,7.56,141.8,141.74,7.56]
[1728100742985,12.5,141.8,141.74,7.56]
[1728100743201,12.5,141.8,141.76,3.5268]
[1728100743585,7.56,141.79,141.76,3.5268]
[1728100743794,11.0863,141.79,141.75,3.527]
[1728100744385,7.56,141.78,141.75,3.527]
[1728100744594,11.0864,141.78,141.75,3.527]
[1728100744792,11.0864,141.78,141.73,8.9672]
[1728100744793,11.0864,141.78,141.74,3.5273]
[1728100745198,7.56,141.77,141.73,1.4072]
[1728100745401,3.5268,141.77,141.73,4.9347]
[1728100745597,11.0868,141.77,141.73,4.9347]
[1728100746101,4.94,141.77,141.74,3.5272]
[1728100748699,4.94,141.77,141.74,3.5271]
[1728100749399,4.94,141.77,141.75,3.527]
[1728100750506,4.94,141.77,141.74,3.5273]
[1728100751504,16.0262,141.79,141.76,3.5267]
[1728100751703,12.5,141.79,141.74,7.56]
[1728100752508,12.5,141.79,141.76,3.5266]
[1728100753207,3.5257,141.81,141.75,7.56]
[1728100753509,7.56,141.81,141.75,7.56]
[1728100754211,7.56,141.81,141.78,3.5262]
[1728100755600,11.0858,141.81,141.77,3.5265]
[1728100755907,11.0858,141.81,141.75,7.56]
[1728100756207,11.0858,141.81,141.78,3.5264]
[1728100756411,11.0858,141.81,141.74,4.94]
[1728100756606,0.12502,141.77,141.75,7.56]
[1728100757209,0.12502,141.77,141.76,3.5269]
[1728100766919,0.12502,141.77,141.74,4.94]
[1728100767818,0.12502,141.77,141.75,3.5271]
[1728100769720,0.12502,141.77,141.76,3.5269]
[1728100799660,0.12502,141.77,141.75,8.467]
[1728100800263,0.12502,141.77,141.76,3.5269]
[1728100801065,0.12502,141.77,141.75,16.0271]
[1728100801362,0.12502,141.77,141.75,12.5]
[1728100801564,0.12502,141.77,141.76,7.56]
[1728100801864,0.12502,141.77,141.76,11.0869]
[1728100802261,0.12502,141.77,141.75,12.5]
[1728100802569,0.12502,141.77,141.75,4.94]
[1728100804065,3.5269,141.76,141.75,4.94]
[1728100804568,0.12502,141.77,141.74,7.56]
[1728100804766,0.12502,141.77,141.74,11.0871]
[1728100807563,3.65162,141.77,141.74,11.0871]
[1728100808260,0.12502,141.77,141.75,7.56]
[1728100808465,0.12502,141.77,141.74,3.5271]
[1728100808965,0.12502,141.77,141.74,11.0871]
[1728100809464,3.65172,141.77,141.74,11.0871]
[1728100810159,0.12502,141.77,141.74,11.0871]
[1728100810960,0.12502,141.77,141.74,7.56]
[1728100811168,0.12502,141.77,141.75,3.5269]
[1728100816467,0.12502,141.77,141.74,7.56]
[1728100816769,3.65192,141.77,141.74,7.56]
[1728100816965,0.12502,141.77,141.73,16.0275]
[1728100817271,7.56,141.76,141.7,4.94]
[1728100817574,8.9276,141.76,141.7,4.94]
[1728100817762,8.9276,141.76,141.69,7.56]
[1728100818159,3.5274,141.74,141.7,3.5282]
[1728100818775,3.5274,141.74,141.7,11.0882]
[1728100819369,3.5276,141.73,141.7,3.5282]
[1728100819679,8.9276,141.76,141.7,11.0882]
[1728100819874,7.56,141.75,141.7,11.0882]
[1728100820478,3.5275,141.74,141.7,11.0882]
[1728100823077,3.5277,141.73,141.7,11.0882]
[1728100835479,3.5277,141.73,141.7,3.5282]
[1728100835674,3.5277,141.73,141.7,11.0882]
[1728100837184,1.3676,141.76,141.7,7.56]
[1728100837485,1.56012,141.77,141.73,7.56]
[1728100837982,0.12502,141.77,141.74,7.56]
[1728100838183,0.12502,141.77,141.76,7.56]
[1728100838383,0.12502,141.77,141.76,12.5]
[1728100838590,0.12502,141.77,141.76,16.0269]
[1728100840389,0.12502,141.77,141.76,4.94]
[1728100840686,0.12502,141.77,141.76,12.5]
[1728100843076,0.12502,141.77,141.76,16.0269]
[1728100846684,0.12502,141.77,141.76,19.53155313]
[1728100846881,8.9005,141.84,141.79,11.086]
[1728100847079,8.9005,141.84,141.79,12.5]
[1728100847592,3.65032,141.83,141.79,16.026]
[1728100847786,3.65032,141.83,141.79,12.5]
[1728100849097,3.65032,141.83,141.8,3.5258]
[1728100851797,3.65032,141.83,141.81,7.56]
[1728100851798,0.12502,141.83,141.81,7.56]
[1728100851986,0.12502,141.83,141.82,4.94]
[1728100852186,0.12502,141.83,141.82,8.4654]
[1728100852689,0.12502,141.83,141.82,4.94]
[1728100853794,3.65012,141.83,141.81,4.94]
[1728100855100,3.65012,141.83,141.8,16.0258]
[1728100856192,7.68502,141.83,141.8,1.4141]
[1728100856398,7.68502,141.83,141.79,4.94]
[1728100856696,7.68502,141.83,141.78,4.94]
[1728100857094,3.5258,141.81,141.78,4.94]
[1728100857407,0.12502,141.83,141.78,12.5]
[1728100857698,7.68502,141.83,141.78,12.5]
[1728100858193,7.68502,141.83,141.78,7.56]
[1728100858401,11.21032,141.83,141.8,3.5258]
[1728100860000,7.68502,141.83,141.79,4.94]
[1728100860196,7.68502,141.83,141.8,3.5257]
[1728100860901,0.12502,141.83,141.8,3.5257]
[1728100861100,3.65022,141.83,141.8,3.5257]